bitfinex/quotes_ETHUSD_20240721
["timestamp","ask_amount","ask_price","bid_price","bid_amount"]
[1721590157356,0.29943264,3481.7,3481.1,0.55]
[1721590157763,0.29943264,3481.7,3481.1,3.42263]
[1721590158095,0.29943264,3481.7,3481.1,0.55]
[1721590158604,16.18724731,3482.2,3481.2,2.3745]
[1721590158952,3.027,3483.1,3481.2,2.3745]
[1721590158953,3.027,3484.8,3482.8,8.61375]
[1721590159225,11.18008376,3485.8,3481.8,2.872]
[1721590159226,1.49831941,3485.4,3485.3,5.73838]
[1721590159433,1.79798329,3485.8,3485.7,5.73772]
[1721590159725,2.09764717,3486.1,3486.0,8.11172]
[1721590160034,2.09764717,3486.1,3486.0,12.3296944]
[1721590160307,2.47784573,3486.4,3486.0,12.3296944]
[1721590160308,2.47784573,3486.4,3486.1,4.38834744]
[1721590160470,2.47784573,3486.4,3486.2,3.0]
[1721590160674,2.47784573,3486.4,3486.2,8.73679]
[1721590160870,2.47784573,3486.4,3486.3,0.55]
[1721590161075,2.47784573,3486.4,3486.3,3.13]
[1721590161316,2.47784573,3486.4,3486.3,8.40312242]
[1721590161727,1.7,3489.0,3486.4,2.3612]
[1721590161920,7.5342078,3489.9,3486.4,2.3612]
[1721590161921,2.58,3488.8,3486.4,5.22943]
[1721590162218,4.727,3489.0,3486.5,0.55]
[1721590162374,4.727,3489.0,3486.4,2.3612]
[1721590162375,2.86629,3488.9,3486.4,2.3612]
[1721590162581,0.99300467,3488.5,3486.5,0.55]
[1721590162813,2.58,3488.4,3486.5,0.55]
[1721590163019,2.58,3488.4,3486.4,2.3612]
[1721590163219,2.58,3488.9,3486.6,2.86811]
[1721590163379,2.58,3488.9,3486.7,0.55]
[1721590163720,1.7,3489.4,3487.1,2.86767]
[1721590163721,2.58,3489.4,3487.1,2.86767]
[1721590163885,7.48,3487.9,3487.2,0.55]
[1721590164082,7.48,3488.3,3487.2,0.55]
[1721590164286,7.48,3488.3,3488.2,8.0948]
[1721590164477,7.48,3489.1,3488.2,5.9112]
[1721590164678,7.48,3489.1,3488.3,0.55]
[1721590164976,7.48,3489.1,3488.2,2.3612]
[1721590164977,2.74,3489.0,3488.4,2.86659]
[1721590165178,19.92,3489.3,3489.1,2.86601]
[1721590165423,19.92,3489.8,3488.8,2.86625]
[1721590165712,19.92,3489.8,3488.9,2.86618]
[1721590165882,7.5342078,3489.9,3489.6,2.8656]
[1721590165883,0.0542078,3489.9,3489.6,2.8656]
[1721590166334,0.0542078,3489.9,3488.3,5.58]
[1721590166537,0.0542078,3489.9,3489.7,2.86556]
[1721590166905,0.0542078,3489.9,3489.7,5.73113]
[1721590167352,0.0542078,3489.9,3489.8,0.55]
[1721590167494,0.005,3491.4,3490.6,2.86479]
[1721590167933,0.005,3491.4,3490.3,2.86503]
[1721590168569,0.005,3491.4,3490.2,2.86512]
[1721590168834,0.005,3491.4,3489.8,6.41543]
[1721590168835,0.005,3491.4,3490.3,3.41502]
[1721590169222,0.005,3491.4,3490.6,2.86478]
[1721590169531,0.005,3491.4,3490.3,3.41502]
[1721590169532,0.005,3491.4,3490.9,2.86454]
[1721590169826,2.58,3493.0,3491.1,2.86439]
[1721590170029,2.58,3492.4,3490.7,0.55]
[1721590170193,2.58,3492.4,3490.7,3.41473]
[1721590170396,0.258,3492.9,3490.7,0.55]
[1721590170397,2.86314,3492.7,3490.7,0.55]
[1721590170627,5.70099,3492.9,3491.0,2.86447]
[1721590170831,5.70099,3492.9,3491.1,0.55]
[1721590170832,2.838,3492.9,3491.1,0.55]
[1721590171034,0.2838,3492.8,3491.4,2.86415]
[1721590171197,0.258,3492.9,3491.4,2.86415]
[1721590171603,0.258,3492.9,3491.1,3.41438]
[1721590171604,0.258,3492.9,3491.5,2.86407]
[1721590171906,0.258,3492.9,3491.3,2.3612]
[1721590172236,2.58,3493.4,3491.7,2.86392]
[1721590172442,2.58,3493.4,3491.8,2.86382]
[1721590172443,7.48,3493.2,3491.8,2.86382]
[1721590172753,7.48,3493.2,3491.9,0.55]
[1721590173106,7.48,3493.2,3491.7,0.55]
[1721590173308,7.48,3493.2,3491.3,5.22541]
[1721590173309,2.86279,3493.1,3491.3,2.3612]
[1721590173647,7.48,3493.2,3491.4,0.55]
[1721590173648,1.034279,3493.0,3491.4,0.55]
[1721590174421,2.58,3492.9,3491.4,0.55]
[1721590174745,2.58,3492.9,3489.9,2.86534]
[1721590174746,2.86362,3492.1,3490.4,2.3612]
[1721590174902,2.58,3492.4,3490.4,2.3612]
[1721590174903,7.48,3491.9,3490.4,2.3612]
[1721590175109,7.48,3491.9,3491.3,2.86426]
[1721590175326,0.748,3491.8,3491.0,2.86443]
[1721590175531,22.89,3492.3,3490.5,2.86491]
[1721590175532,3.0,3492.2,3490.5,2.86491]
[1721590175741,3.0,3492.2,3490.4,2.3612]
[1721590175742,7.48,3492.3,3491.5,2.86403]
[1721590175906,7.48,3492.3,3490.4,2.3612]
[1721590176103,7.48,3492.3,3490.3,2.58]
[1721590176104,7.48,3492.3,3491.6,5.2252]
[1721590176382,7.48,3492.3,3491.7,0.55]
[1721590176647,0.748,3492.2,3491.8,2.86383]
[1721590176820,0.748,3492.2,3491.9,0.55]
[1721590177023,0.748,3492.2,3491.7,0.55]
[1721590177365,0.748,3492.2,3491.8,2.86384]
[1721590177687,0.748,3492.2,3491.9,0.55]
[1721590177849,7.48,3492.3,3491.7,0.55]
[1721590177850,0.8228,3492.1,3491.7,0.55]
[1721590178957,12.41,3492.9,3491.7,0.55]
[1721590178958,0.1521259,3494.3,3491.8,2.58]
[1721590179167,2.8616,3494.6,3492.5,2.86325]
[1721590179367,2.58,3495.4,3493.0,2.86281]
[1721590179368,0.35,3495.2,3493.0,2.86281]
[1721590179670,5.44098,3495.4,3493.1,3.41273]
[1721590179671,2.58,3495.4,3493.1,3.41273]
[1721590179811,2.58,3495.4,3493.1,0.55]
[1721590180172,2.86181,3494.3,3492.9,3.41294]
[1721590180367,0.258,3495.3,3492.9,3.41294]
[1721590180368,0.258,3495.3,3493.4,2.86252]
[1721590180666,2.86134,3494.9,3493.5,0.55]
[1721590180871,3.11904,3495.3,3493.5,0.55]
[1721590181434,2.86132,3494.9,3493.5,0.55]
[1721590181619,2.58,3494.4,3493.4,0.55]
[1721590181960,2.58,3494.4,3492.6,2.3444]
[1721590181961,2.58,3493.9,3492.6,2.3444]
[1721590182177,2.58,3493.9,3491.6,2.3858]
[1721590182178,2.86262,3493.3,3491.6,2.3858]
[1721590182463,2.86296,3492.9,3491.6,2.3858]
[1721590182616,2.58,3492.9,3490.8,2.3858]
[1721590182821,2.86352,3492.2,3490.8,2.3858]
[1721590183328,2.86358,3492.2,3490.8,2.3858]
[1721590183531,2.86312,3492.7,3490.8,2.3858]
[1721590183757,2.86337,3492.4,3490.8,2.3858]
[1721590183978,3.0,3492.6,3491.2,2.8643]
[1721590184169,0.6407318,3492.5,3490.8,2.3858]
[1721590184373,0.6407318,3492.5,3491.1,2.86439]
[1721590184898,0.6407318,3492.5,3491.4,2.86417]
[1721590185163,2.8631,3492.8,3491.5,0.55]
[1721590185370,2.8631,3492.8,3491.1,2.86436]
[1721590185371,2.86327,3492.6,3491.4,0.55]
[1721590185669,7.48,3492.8,3490.8,2.3858]
[1721590185670,2.86358,3492.2,3490.8,2.3858]
[1721590185963,10.34358,3492.2,3490.8,2.3858]
[1721590186263,2.86378,3491.9,3490.8,2.3858]
[1721590186474,1.034358,3492.1,3490.8,2.3858]
[1721590186754,2.86394,3491.7,3490.8,2.3858]
[1721590186957,2.86434,3491.2,3490.1,2.3858]
[1721590187115,1.034358,3492.1,3490.1,2.3858]
[1721590187116,2.86451,3491.0,3490.1,2.3858]
[1721590187316,7.48,3491.3,3490.1,2.3858]
[1721590187317,0.286451,3490.9,3490.1,2.3858]
[1721590187522,7.48,3491.3,3490.1,2.3858]
[1721590187745,10.34429,3491.3,3490.1,2.3858]
[1721590187951,7.48,3491.3,3490.1,2.3858]
[1721590188865,7.48,3491.3,3489.1,5.17894]
[1721590188866,2.86486,3490.6,3489.1,5.17894]
[1721590189067,7.48,3490.5,3489.1,2.3129]
[1721590189274,1.034486,3490.4,3489.2,2.86598]
[1721590189681,1.034486,3490.4,3489.7,2.86556]
[1721590189969,1.034486,3490.4,3489.5,2.86571]
[1721590190174,1.034486,3490.4,3489.8,2.86548]
[1721590190341,1.034486,3490.4,3489.9,2.86533]
[1721590190542,5.88591563,3490.5,3490.1,2.86524]
[1721590190761,5.88591563,3490.5,3489.9,2.86539]
[1721590190966,5.88591563,3490.5,3489.1,2.3129]
[1721590191133,5.88591563,3490.5,3489.4,2.8658]
[1721590191332,8.75083563,3490.5,3489.1,2.3129]
[1721590191560,0.87508356,3490.4,3489.1,2.3129]
[1721590191880,3.74009356,3490.4,3489.1,2.3129]
[1721590192172,2.86512,3490.3,3489.1,2.3129]
[1721590192473,2.86526,3490.1,3489.1,2.3129]
[1721590192630,6.76710356,3490.4,3489.1,2.3129]
[1721590192831,0.92878273,3490.3,3489.1,2.3129]
[1721590193026,0.92878273,3490.3,3489.3,2.86589]
[1721590193271,0.92878273,3490.3,3489.1,2.3129]
[1721590193272,0.92878273,3490.3,3489.4,2.8658]
[1721590193970,0.92878273,3490.3,3489.1,2.3129]
[1721590194185,0.92878273,3490.3,3489.3,2.86589]
[1721590194347,0.68146984,3490.2,3489.3,2.86589]
[1721590194672,0.68146984,3490.2,3489.4,3.4158]
[1721590194879,0.68146984,3490.2,3489.6,2.86564]
[1721590195085,0.68146984,3490.2,3489.7,2.86556]
[1721590195231,0.68146984,3490.2,3489.3,2.86588]
[1721590195656,0.68146984,3490.2,3489.6,2.86563]
[1721590196073,0.68146984,3490.2,3489.4,0.55]
[1721590196867,0.68146984,3490.2,3489.1,2.3129]
[1721590197476,2.86527,3490.1,3489.1,2.3129]
[1721590197680,0.68146984,3490.2,3489.1,2.3129]
[1721590197681,3.22001398,3490.0,3489.1,2.3129]
[1721590198216,2.8656,3489.7,3489.1,2.3129]
[1721590198426,3.027,3489.9,3488.4,5.16134]
[1721590198625,0.35467398,3490.0,3488.7,2.86632]
[1721590198916,2.86549,3489.8,3488.4,2.2947]
[1721590199079,1.93320595,3489.9,3488.4,2.2947]
[1721590199283,4.79861595,3489.9,3488.4,2.2947]
[1721590199485,7.82561595,3489.9,3488.4,2.2947]
[1721590199670,2.86566,3489.6,3488.4,2.2947]
[1721590199867,0.286566,3489.5,3488.4,5.16133]
[1721590200170,3.027,3489.4,3488.4,2.2947]
[1721590200597,0.286566,3489.5,3488.4,2.2947]
[1721590200800,0.286566,3489.5,3487.6,2.86723]
[1721590201115,2.866,3489.2,3487.8,2.86713]
[1721590201316,0.2866,3489.1,3487.5,2.2947]
[1721590201469,0.286566,3489.5,3488.4,2.86664]
[1721590201677,0.286566,3489.5,3488.1,8.02839]
[1721590202023,0.58613882,3489.5,3488.6,2.86644]
[1721590202217,0.286566,3489.5,3488.9,2.86623]
[1721590202423,0.286566,3489.5,3489.0,2.4553]
[1721590202630,0.286566,3489.5,3489.1,0.55]
[1721590202631,0.61724816,3489.4,3489.1,0.55]
[1721590202776,0.286566,3489.5,3489.0,2.4553]
[1721590202970,5.88591563,3490.0,3489.1,0.55]
[1721590203171,5.88591563,3490.0,3489.0,2.4553]
[1721590203416,5.88591563,3490.0,3489.1,0.55]
[1721590204213,5.88591563,3490.4,3489.8,2.86542]
[1721590204510,19.92,3491.0,3489.6,2.86563]
[1721590204511,0.58859156,3490.3,3489.6,2.86563]
[1721590204712,5.88591563,3490.9,3489.9,0.55]
[1721590205008,0.29956969,3490.8,3489.9,0.55]
[1721590205337,5.88591563,3490.9,3490.2,2.86516]
[1721590205514,5.88591563,3490.9,3490.1,2.4553]
[1721590205515,5.88591563,3491.6,3490.7,2.86471]
[1721590205729,0.58859156,3491.5,3490.5,0.60067095]
[1721590206013,5.88591563,3492.0,3491.3,2.86425]
[1721590206217,5.88591563,3492.0,3491.1,2.86442]
[1721590206418,5.88591563,3492.0,3490.7,5.92065095]
[1721590206727,5.88591563,3492.0,3490.8,1.54602076]
[1721590206930,5.88591563,3492.0,3491.1,2.86434]
[1721590207097,0.58859156,3491.9,3491.2,0.55]
[1721590207606,0.58859156,3491.9,3491.5,2.86408]
[1721590207825,0.58859156,3491.9,3491.1,0.55]
[1721590207826,0.58859156,3491.9,3491.6,0.55]
[1721590208111,19.92,3492.4,3491.2,2.86432]
[1721590208330,5.88591563,3492.6,3491.6,2.864]
[1721590208476,18.29591563,3493.0,3491.4,2.4597]
[1721590208678,2.86305,3492.8,3491.5,1.54586428]
[1721590208889,2.86329,3492.5,3491.5,0.55]
[1721590209102,2.86353,3492.2,3491.1,0.60067095]
[1721590209288,0.286329,3492.4,3490.9,0.60067095]
[1721590209510,0.286329,3492.4,3490.8,2.4597]
[1721590209511,3.02,3492.2,3491.0,0.99600846]
[1721590209690,3.02,3492.2,3490.4,0.60067095]
[1721590209691,2.86413,3491.5,3490.4,0.60067095]
[1721590209888,2.86386,3491.8,3490.2,3.36070642]
[1721590209889,2.86386,3491.8,3490.5,2.49048338]
[1721590210112,2.8641,3491.5,3490.3,0.60067095]
[1721590210320,2.8641,3491.5,3490.4,2.49052118]
[1721590210511,2.8641,3491.5,3490.5,2.49052118]
[1721590210715,1.17497756,3491.7,3490.3,3.46575095]
[1721590211025,1.17497756,3491.7,3490.4,3.0912231]
[1721590211227,1.00608932,3491.6,3490.4,0.60067095]
[1721590211390,1.00608932,3491.6,3490.9,0.60067095]
[1721590211593,1.00608932,3491.6,3490.6,1.2013419]
[1721590211594,1.00608932,3491.6,3491.0,0.99615405]
[1721590211791,1.00608932,3491.6,3490.8,0.60067095]
[1721590212034,1.00608932,3491.6,3490.9,3.04019568]
[1721590212330,1.00608932,3491.6,3491.2,3.06037095]
[1721590212530,38.21591563,3492.3,3491.2,3.06037095]
[1721590212531,5.88591563,3492.3,3491.9,2.86373]
[1721590212735,5.88591563,3492.3,3491.3,5.03190364]
[1721590212736,19.92,3492.8,3492.0,3.03972563]
[1721590212891,19.92,3492.8,3492.1,4.94942563]
[1721590213094,19.92,3492.8,3492.2,1.54607827]
[1721590213322,19.92,3492.8,3492.2,0.55]
[1721590213631,2.86214,3493.9,3492.2,0.55]
[1721590213632,0.0542078,3496.8,3493.3,2.8626]
[1721590213833,2.9140178,3496.8,3494.8,2.4597]
[1721590214005,0.29916986,3496.7,3494.9,0.99572254]
[1721590214205,2.86061,3495.8,3494.1,2.4597]
[1721590214409,4.4572,3496.5,3494.1,2.4597]
[1721590214604,2.703,3495.8,3493.4,3.04628708]
[1721590214805,1.7,3496.1,3492.7,3.04628708]
[1721590214806,2.703,3495.1,3492.7,3.04628708]
[1721590215004,2.703,3495.1,3492.7,2.4597]
[1721590215231,2.86222,3493.8,3492.7,2.4597]
[1721590215431,4.72,3494.9,3492.7,2.4597]
[1721590215432,2.86246,3493.5,3492.7,2.4597]
[1721590215633,2.86213,3493.9,3491.9,0.58658708]
[1721590215634,2.86206,3494.0,3491.9,2.4597]
[1721590215798,2.86196,3494.2,3492.1,2.86357]
[1721590216129,2.86099,3495.3,3491.9,2.4597]
[1721590216130,1.7,3493.8,3491.9,2.4597]
[1721590216331,2.8625,3493.5,3491.9,2.4597]
[1721590216534,0.35,3493.6,3491.9,2.4597]
[1721590216833,2.86255,3493.4,3491.9,2.4597]
[1721590217034,0.35,3493.6,3491.9,2.4597]
[1721590217199,2.703,3495.2,3492.0,2.48928281]
[1721590217534,1.7,3495.7,3492.9,2.86292]
[1721590217708,0.35,3495.4,3493.0,2.2789]
[1721590217909,2.86156,3494.6,3493.0,5.14175]
[1721590218234,2.91453,3496.1,3493.5,2.86244]
[1721590218435,2.91453,3496.1,3493.6,2.8289]
[1721590218436,2.86061,3495.8,3493.6,2.8289]
[1721590218597,2.86145,3494.8,3493.6,2.2789]
[1721590218799,2.05,3495.6,3493.6,2.2789]
[1721590219002,0.35,3495.6,3493.6,2.2789]
[1721590219310,2.86107,3495.2,3493.6,2.2789]
[1721590219515,2.86059,3495.8,3493.7,0.55]
[1721590219847,2.86059,3495.8,3493.6,2.2789]
[1721590219848,2.8608,3495.6,3493.6,2.2789]
[1721590220013,2.86098,3495.3,3493.7,0.55]
[1721590220217,2.86108,3495.2,3493.7,0.55]
[1721590220430,2.86084,3495.5,3493.8,2.8622]
[1721590220757,2.703,3496.6,3494.0,2.86203]
[1721590221037,2.86094,3495.4,3494.1,0.55]
[1721590221237,2.86062,3495.8,3494.1,0.55]
[1721590221437,2.86017,3496.3,3494.1,0.55]
[1721590221438,2.86107,3495.2,3494.1,0.55]
[1721590221676,2.86107,3495.2,3493.6,2.2789]
[1721590221677,3.02,3495.9,3493.6,2.2789]
[1721590221797,2.86197,3494.1,3493.6,2.2789]
[1721590222199,2.86206,3494.0,3493.6,2.2789]
[1721590222436,2.86206,3494.0,3491.5,0.58658708]
[1721590222437,2.86254,3493.4,3492.6,2.2956]
[1721590222640,2.86263,3493.3,3492.6,2.2956]
[1721590222850,2.86238,3493.6,3492.6,2.2956]
[1721590223062,2.86238,3493.6,3490.7,3.45131708]
[1721590223063,3.286238,3493.5,3491.8,2.2956]
[1721590223242,2.86312,3492.7,3491.8,2.2956]
[1721590223542,3.286238,3493.5,3491.8,2.2956]
[1721590223543,6.02,3492.6,3491.8,2.2956]
[1721590223710,6.02,3492.6,3491.1,2.2956]
[1721590223711,3.02,3492.0,3491.1,2.2956]
[1721590223913,5.88371,3492.0,3491.1,2.2956]
[1721590224144,2.86394,3491.7,3491.1,2.2956]
[1721590224356,2.86402,3491.6,3491.1,2.2956]
[1721590224651,6.77163211,3491.9,3491.1,2.2956]
[1721590224947,0.88785211,3491.9,3489.7,2.86556]
[1721590225125,0.88785211,3491.9,3490.6,2.2956]
[1721590225333,0.29948111,3491.9,3490.6,2.2956]
[1721590225654,2.8641,3491.5,3490.6,2.2956]
[1721590225802,0.29948111,3491.9,3490.6,2.2956]
[1721590226514,0.29948111,3491.9,3491.1,2.86441]
[1721590226715,1.7,3494.2,3491.3,2.2956]
[1721590226915,2.86165,3494.5,3491.3,2.2956]
[1721590226916,2.86262,3493.3,3491.3,2.2956]
[1721590227116,3.31106362,3494.1,3491.3,2.2956]
[1721590227117,3.02,3492.6,3491.3,2.2956]
[1721590227411,2.86304,3492.8,3491.3,2.2956]
[1721590227643,0.3148858,3493.2,3491.3,2.2956]
[1721590227644,3.1775858,3493.2,3491.3,2.2956]
[1721590227819,2.86322,3492.6,3491.3,2.2956]
[1721590228023,2.86393,3491.7,3491.3,2.2956]
[1721590228237,1.721,3492.7,3491.3,2.2956]
[1721590228238,3.306393,3491.6,3491.3,2.2956]
[1721590229135,0.286393,3491.6,3491.3,2.2956]
[1721590229499,3.0,3492.1,3491.3,2.2956]
[1721590229699,3.0,3492.5,3491.3,2.2956]
[1721590230046,5.88591563,3493.0,3491.3,5.1598]
[1721590230200,2.86302,3492.9,3491.4,0.55]
[1721590230402,5.88591563,3493.0,3491.4,0.55]
[1721590230606,1.20835914,3492.9,3491.4,0.55]
[1721590230854,1.20835914,3492.9,3492.0,2.86361]
[1721590231023,1.20835914,3492.9,3492.1,2.8456]
[1721590231341,0.3148858,3493.2,3492.3,2.86344]
[1721590231554,0.3148858,3493.2,3492.4,0.55]
[1721590231757,0.3148858,3493.2,3492.1,2.2956]
[1721590232042,2.86312,3492.7,3492.1,2.2956]
[1721590232258,3.3348858,3493.2,3492.1,2.2956]
[1721590232550,3.53342898,3493.1,3492.1,2.2956]
[1721590232903,0.53342898,3493.1,3492.1,2.2956]
[1721590233138,0.3148858,3493.2,3492.1,5.1592]
[1721590233343,0.3148858,3493.2,3492.5,2.86326]
[1721590233549,0.3148858,3493.2,3492.6,5.15879]
[1721590233698,0.3148858,3493.2,3492.6,5.70879]
[1721590233904,32.33,3494.0,3492.6,5.70879]
[1721590233905,32.33,3494.0,3492.9,2.86288]
[1721590234142,0.29903852,3494.0,3493.0,0.57160119]
[1721590234371,0.29903852,3494.0,3493.1,0.02160078]
[1721590234549,0.29903852,3494.0,3493.3,2.2956]
[1721590234764,5.88591563,3494.5,3493.3,2.2956]
[1721590234765,5.88591563,3494.5,3493.4,0.57162577]
[1721590235088,0.87473856,3494.4,3493.4,0.55]
[1721590235461,3.89473856,3494.4,3493.3,2.2956]
[1721590235639,0.87473856,3494.4,3493.3,2.2956]
[1721590235841,0.87473856,3494.4,3493.4,0.55]
[1721590236464,0.87473856,3494.4,3493.5,2.91965458]
[1721590236741,0.87473856,3494.4,3493.4,0.55]
[1721590236742,0.70596096,3494.3,3493.6,0.55697036]
[1721590236981,18.29591563,3495.0,3493.7,2.86228]
[1721590236982,5.88591563,3495.0,3493.7,2.86228]
[1721590237191,0.29892914,3494.9,3493.8,0.55]
[1721590237486,3.16023914,3494.9,3493.8,0.55]
[1721590237784,0.29892914,3494.9,3493.6,0.55]
[1721590238022,0.29892914,3494.9,3493.5,2.3505]
[1721590238282,5.88591563,3495.0,3493.4,0.60723723]
[1721590238283,5.88591563,3495.0,3494.1,5.21242]
[1721590238592,5.88591563,3495.0,3493.6,0.57435073]
[1721590238593,5.88591563,3495.0,3494.5,2.3505]
[1721590238775,19.92,3495.1,3494.5,2.3505]
[1721590239386,19.3229445,3495.1,3494.5,2.3505]
[1721590239558,1.93229445,3495.0,3494.5,2.3505]
[1721590239943,1.93229445,3495.0,3494.6,0.55]
[1721590240294,1.93229445,3495.0,3494.5,2.3505]
[1721590241193,1.93229445,3495.0,3494.6,0.55]
[1721590241679,1.95559885,3495.0,3494.6,3.41154]
[1721590241881,0.0233044,3495.0,3494.7,2.86146]
[1721590242041,5.88591563,3495.8,3494.9,2.8613]
[1721590242247,5.88591563,3495.8,3494.8,3.0469]
[1721590242248,19.3229445,3496.1,3495.0,0.55]
[1721590242578,19.3229445,3496.1,3494.9,5.35817]
[1721590242738,19.3229445,3496.1,3495.0,0.55]
[1721590242945,2.8605,3495.9,3495.0,0.55]
[1721590243197,19.62190307,3496.1,3494.9,2.4969]
[1721590243479,19.62190307,3496.1,3495.1,2.86114]
[1721590243640,19.62190307,3496.1,3495.2,0.55]
[1721590243641,19.3229445,3496.1,3495.2,0.55]
[1721590243842,19.3229445,3496.1,3495.3,2.4969]
[1721590244042,5.88591563,3496.4,3495.9,2.4969]
[1721590244286,0.0542078,3496.8,3495.9,2.4969]
[1721590244792,0.35309636,3496.8,3495.9,2.4969]
[1721590245577,0.35309636,3496.8,3496.0,0.55]
[1721590245776,0.0542078,3496.8,3496.0,1.00339215]
[1721590246001,0.0542078,3496.8,3496.2,2.4969]
[1721590246219,12.9095,3498.0,3497.1,2.85943]
[1721590246220,0.4995,3498.0,3497.1,2.85943]
[1721590246431,0.4995,3498.0,3496.8,5.35662]
[1721590246432,2.85891,3497.9,3496.8,2.4969]
[1721590246609,2.85911,3497.6,3496.8,2.4969]
[1721590246837,0.29881275,3497.9,3496.8,2.4969]
[1721590246977,2.85894,3497.8,3496.8,2.4969]
[1721590247175,0.29881275,3497.9,3496.8,2.4969]
[1721590247545,0.29881275,3497.9,3495.5,0.58658708]
[1721590247546,2.703,3497.7,3495.4,2.4969]
[1721590247825,2.85925,3497.5,3495.4,2.4969]
[1721590248121,2.8591,3497.7,3495.8,2.86056]
[1721590248308,2.8595,3497.2,3495.9,2.4969]
[1721590248477,0.36570227,3497.8,3495.9,2.4969]
[1721590248478,3.0,3497.5,3495.9,2.4969]
[1721590248811,2.85945,3497.2,3495.9,2.4969]
[1721590248975,0.5703,3497.4,3495.9,2.4969]
[1721590249173,2.85954,3497.1,3495.9,2.4969]
[1721590249488,5.703,3497.0,3495.9,2.4969]
[1721590249687,5.703,3497.0,3494.9,2.4969]
[1721590249688,2.703,3496.4,3494.9,2.4969]
[1721590249899,2.86047,3496.0,3494.9,2.4969]
[1721590250118,2.86081,3495.6,3494.9,2.4969]
[1721590250410,3.2703,3496.3,3494.9,2.4969]
[1721590250411,2.86089,3495.5,3494.9,2.4969]
[1721590250629,6.13053,3496.3,3494.9,2.4969]
[1721590250630,3.2703,3496.3,3494.9,2.4969]
[1721590250828,6.13052,3496.3,3494.9,2.4969]
[1721590251038,6.13052,3496.3,3495.2,2.86106]
[1721590251039,0.883352,3496.2,3495.2,2.86106]
[1721590251242,1.7542,3498.5,3495.8,2.4969]
[1721590251243,3.42958,3497.4,3495.8,2.4969]
[1721590251459,2.703,3497.8,3495.8,2.4969]
[1721590251460,8.58891563,3497.8,3495.8,2.4969]
[1721590251726,2.85926,3497.5,3495.9,2.86042]
[1721590251930,5.88591563,3497.8,3495.8,2.4969]
[1721590252143,2.85943,3497.2,3495.8,2.4969]
[1721590252293,0.285943,3497.1,3495.8,2.4969]
[1721590252501,3.145503,3497.1,3495.8,2.4969]
[1721590252705,0.285943,3497.1,3495.8,5.35744]
[1721590252920,0.285943,3497.1,3495.8,2.4969]
[1721590253345,6.145523,3497.1,3495.8,2.4969]
[1721590253647,0.9145523,3497.0,3495.8,2.4969]
[1721590253857,0.285943,3497.1,3496.0,2.8604]
[1721590254166,0.285943,3497.1,3496.3,2.86015]
[1721590254452,2.85935,3497.3,3495.8,5.35746]
[1721590254670,3.0,3497.7,3496.4,2.86007]
[1721590254959,5.88591563,3497.8,3496.5,2.4969]
[1721590255118,0.29881275,3497.9,3496.5,2.4969]
[1721590255119,2.85929,3497.4,3496.5,2.4969]
[1721590255462,0.29881275,3497.9,3496.5,2.4969]
[1721590255463,2.85895,3497.8,3496.5,2.4969]
[1721590255607,3.67161928,3497.7,3496.5,2.4969]
[1721590255960,2.85942,3497.3,3496.5,2.4969]
[1721590256451,2.85945,3497.2,3496.5,2.4969]
[1721590256618,3.02,3497.4,3496.5,2.4969]
[1721590256838,3.0,3497.6,3496.5,2.4969]
[1721590256839,3.02,3497.5,3496.5,2.4969]
[1721590257055,0.65161928,3497.7,3496.5,2.4969]
[1721590257056,0.29885591,3497.1,3496.5,2.4969]
[1721590258503,3.31885591,3497.1,3495.1,0.45339215]
[1721590258707,2.86041,3496.0,3495.2,2.2691]
[1721590258945,3.146531,3495.9,3495.2,2.2691]
[1721590259302,2.86059,3495.8,3495.2,2.2691]
[1721590259714,0.286041,3495.9,3495.2,2.2691]
[1721590259917,0.286041,3495.9,3495.2,5.13016]
[1721590260248,5.87974,3496.9,3495.2,5.13016]
[1721590260444,0.29885591,3497.1,3495.2,5.13016]
[1721590260445,3.02,3496.6,3495.2,2.2691]
[1721590260611,5.88019,3496.3,3495.2,2.2691]
[1721590260810,5.88017,3496.3,3495.2,2.2691]
[1721590261012,6.14912591,3497.1,3495.2,2.2691]
[1721590261013,5.88042,3496.0,3495.2,2.2691]
[1721590261319,2.85986,3496.7,3495.2,2.2691]
[1721590261320,3.608042,3495.9,3495.2,2.2691]
[1721590261520,0.588042,3495.9,3495.2,2.2691]
[1721590262031,3.02,3495.7,3495.2,2.2691]
[1721590262209,3.02,3495.7,3494.5,2.3285]
[1721590262406,0.588042,3495.9,3494.5,5.19006]
[1721590262609,0.2877,3497.3,3495.1,2.3285]
[1721590262610,3.00185591,3497.1,3495.1,2.3285]
[1721590262818,2.85994,3496.6,3495.1,2.3285]
[1721590263044,0.35,3496.9,3495.1,2.3285]
[1721590263317,0.29885591,3497.1,3495.9,2.3285]
[1721590263908,0.29885591,3497.1,3496.3,2.86015]
[1721590264120,0.29885591,3497.1,3496.1,2.86032]
[1721590264473,0.29885591,3497.1,3496.0,0.55]
[1721590264474,0.4995,3498.0,3496.5,2.3285]
[1721590264751,0.79828654,3498.0,3497.1,2.8595]
[1721590265050,0.79828654,3498.0,3496.8,2.85968]
[1721590265261,0.79828654,3498.0,3496.9,2.8785]
[1721590265438,0.79828654,3498.0,3497.5,2.3285]
[1721590265676,0.4995,3498.0,3497.5,2.3285]
[1721590265853,3.02,3497.6,3497.5,2.3285]
[1721590266037,2.85934,3497.4,3496.0,2.3285]